Cogmind - Beta 13 @@@ ROGUE MODE // 2024.04.09 @ 18:57:28 Player: meetlok Result: Destroyed by D-53 Grenadier with Mini Grenade Launcher Performance ------------- Evolutions (0) 0 Regions Visited (2) 400 Robots Destroyed (18) 90 Value Destroyed (478) 478 Prototype IDs (0) 0 Alien Tech Used (0) 0 Bonus (0) 0 TOTAL SCORE: 968 Bonus ------- None Cogmind --------- Core Integrity 0/250 Matter 300/300 Energy 100/100 System Corruption 0% Temperature Cool (0) Movement Core (700) Ox13 Location -10/Mines Parts ------- > --- POWER (1) -------- (None) > --- PROPULSION (2) --- (None) > --- UTILITY (2) ------ Improved Heat Sink High-capacity Storage Unit > --- WEAPON (2) ------- Light Assault Rifle > --- INVENTORY (20) --- Ion Engine Ion Engine Ion Engine Light Nuclear Core Improved Heat Sink Medium Matter Pod (100) Weight Redist. System Transport Network Coupler EM Pulse Gun Small Laser Light Assault Rifle Datajack Mining Laser Peak State ------------ > --- POWER ------------ Light Nuclear Core > --- PROPULSION ------- Light Treads Light Treads > --- UTILITY ---------- Improved Heat Sink High-capacity Storage Unit > --- WEAPON ----------- EM Pulse Gun Light Assault Rifle > --- INVENTORY -------- Ion Engine Ion Engine Ion Engine Light Nuclear Core Light Nuclear Core Improved Heat Sink Medium Matter Pod Weight Redist. System Transport Network Coupler EM Pulse Gun Small Laser Light Assault Rifle Datajack Mining Laser [Rating: 13] Favorites ----------- Power Light Nuclear Core Engine Ion Engine Power Core Light Nuclear Core Propulsion Light Treads Treads Light Treads Utility High-capacity Storage Unit Device Improved Heat Sink Storage High-capacity Storage Unit Weapon Light Assault Rifle Energy Gun EM Pulse Gun Ballistic Gun Light Assault Rifle Build | -11 -10 -10 ------- Run | Yrd Mat Min Slots Evolved . | . . . Power . | . . . Propulsion . | . . . Utility . | . . . Weapon . | . . . Parts Attached 19 | 7 11 1 Power 4 | 1 2 1 Engine 2 | 1 1 . Core 2 | . 1 1 Reactor . | . . . Propulsion 4 | 2 2 . Treads 4 | 2 2 . Leg . | . . . Wheel . | . . . Hover . | . . . Flight . | . . . Utility 5 | 2 3 . Device 3 | 1 2 . Storage 2 | 1 1 . Processor . | . . . Hackware . | . . . Protection . | . . . Artifact . | . . . Weapon 6 | 2 4 . Energy Gun 2 | 1 1 . Energy Cannon . | . . . Ballistic Gun 4 | 1 3 . Ballistic Cannon . | . . . Launcher . | . . . Special Weapon . | . . . Impact Weapon . | . . . Slashing Weapon . | . . . Piercing Weapon . | . . . Special Melee Weapon . | . . . Unidentified Prototypes . | . . . Parts Lost 6 | . 2 4 Power 1 | . . 1 Propulsion 3 | . 1 2 Utility 1 | . 1 . Weapon 1 | . . 1 Highest Loss Streak 4 | . 1 4 To Critical Strikes . | . . . Average Slot Usage (%) 98 | . 97 100 Engine 6 | . 8 . Core 7 | . 5 14 Treads 27 | . 27 28 Device 12 | . 11 14 Storage 14 | . 14 14 Energy Gun 6 | . 4 14 Ballistic Gun 21 | . 23 14 Naked Turns . | . . . Heaviest Build 49 | 13 49 49 Greatest Support 40 | 40 40 40 Greatest Overweight (x) 1 | . 1 1 Average Overweight (x) . | . . 1 Largest Inventory Capacity 20 | 8 20 20 Average Capacity 18 | 6 18 20 Most Carried 14 | 2 13 14 Average Carried 8 | 1 7 13 Final Capacity 20 | 8 20 20 Final Carried 13 | 2 13 13 Class Distribution -------------------- 92% | Mutant 7% | Scavenger-Mutant Dominant Class ---------------- Mutant | -10/Materials Mutant | -10/Mines Resources | -11 -10 -10 ----------- Run | Yrd Mat Min Matter Collected 623 | 272 309 42 Remotely 327 | 127 200 . Salvage Created 749 | 52 660 37 Parts 51 | 5 46 . Haulers Intercepted 1 | . 1 . Recyclers Shooed 1 | . 1 . Parts Field Recycled . | . . . Retrieved Matter . | . . . Parts Self-Destructed . | . . . Prevented . | . . . Kills | -11 -10 -10 ------- Run | Yrd Mat Min Combat Hostiles Destroyed 15 | . 15 . Guns 15 | . 15 . Classes Destroyed 4 | 1 3 . Hauler 1 | . 1 . Recycler 2 | 1 1 . Swarmer 3 | . 3 . Grunt 12 | . 12 . Best Kill Streak 4 | 1 4 . Combat Bots Only 3 | . 3 . Max Kills in Single Turn 2 | 1 2 . Gunslinging 1 | . 1 . Exploded . | . . . Melee . | . . . Uniques/NPCs Destroyed . | . . . Combat | -11 -10 -10 -------- Run | Yrd Mat Min Hostile Shots Fired 105 | . 76 29 Missed 24 | . 16 8 Damage Taken 1255 | . 672 583 Core 259 | . 110 149 Absorbed by Shields . | . . . Regen/Repaired (Parts) 115 | . 115 . Core Remaining (%) 100 | 100 . . Volleys Fired 81 | 2 63 16 Largest 2 | 2 2 2 Hottest 60 | 60 60 60 Shots Fired 162 | 4 126 32 Gun 162 | 4 126 32 Cannon . | . . . Launcher . | . . . Special . | . . . Kinetic 142 | 2 124 16 Thermal 2 | 2 . . Explosive . | . . . Electromagnetic 18 | . 2 16 Robot Hit Streak 14 | 3 14 7 Robot Miss Streak 6 | . 4 6 Penetration Max . | . . . Secondary Targets 2 | . 2 . Max Gunslinging Chain 1 | . 1 . Shots Hit Robots 111 | 3 89 19 Core Hits 52 | 2 44 6 Critical Kills . | . . . Critical Parts Destroyed . | . . . Critical Strikes 1 | . . 1 Corrupt 1 | . . 1 Melee Attacks . | . . . Impact . | . . . Slashing . | . . . Piercing . | . . . Sneak Attacks . | . . . Combat Hostiles . | . . . Follow-up Attacks . | . . . Damage Inflicted 963 | 28 719 216 Guns 963 | 28 719 216 Cannons . | . . . Explosions . | . . . Melee . | . . . Ramming . | . . . Kinetic 762 | 8 694 60 Thermal 20 | 20 . . Explosive . | . . . Electromagnetic 181 | . 25 156 Impact . | . . . Slashing . | . . . Piercing . | . . . Highest Corruption . | . . . Average Corruption . | . . . Corruption Purged . | . . . Corruption Blocked . | . . . Overload Shots . | . . . Overflow Damage . | . . . Projectiles . | . . . Explosions . | . . . Melee . | . . . Knockbacks . | . . . Impact . | . . . Kinetic . | . . . Secondary . | . . . Self-Inflicted Damage . | . . . Shots . | . . . Rammed . | . . . Targets Rammed . | . . . Kicked . | . . . Crushed . | . . . Highest Temperature 29 | 20 29 18 Average Temperature 9 | 15 9 6 Received Heat Transfer 401 | . 303 98 Siege Activations . | . . . Robots Corrupted . | . . . Combat Hostiles . | . . . Parts Fried . | . . . Impact Corruptions . | . . . Robots Melted . | . . . Combat Hostiles . | . . . Parts Melted . | . . . Heat Transferred 50 | 50 . . Parts Sabotaged . | . . . Parts Stolen . | . . . Parts Stripped . | . . . Power Chain Reactions . | . . . Alert | -11 -10 -10 ------- Run | Yrd Mat Min Peak Influence 347 | 5 347 91 Initial 91 | . 3 91 Average 126 | 2 149 82 Maximum Alert Level 1 | . 1 . Low Security (%) 69 | 100 55 100 Level 1 30 | . 44 . Level 2 . | . . . Level 3 . | . . . Level 4 . | . . . Level 5 . | . . . High Security . | . . . Max Security . | . . . Squads Dispatched 5 | . 5 . Investigation 3 | . 3 . Extermination . | . . . Reinforcement 2 | . 2 . Assault . | . . . Garrison . | . . . Intercept . | . . . Searches Triggered . | . . . Construction Impeded . | . . . Haulers Reinforced . | . . . Active Scanning Responses . | . . . Cargo Convoy Interrupts . | . . . Stealth | -11 -10 -10 --------- Run | Yrd Mat Min Distress Signals 5 | . 5 . Communications Jammed . | . . . Distress Signals . | . . . Times Spotted 34 | . 27 7 Peak Tracking Total 10 | . 5 10 Tactical Retreats 4 | . 4 . Traps | -11 -10 -10 ------- Run | Yrd Mat Min Traps Triggered 2 | . 2 . Indirectly . | . . . Trap Hack Attempts . | . . . Triggered . | . . . Disarmed . | . . . Reprogrammed . | . . . Reused . | . . . Traps Extracted . | . . . Installed . | . . . Triggered . | . . . Machines | -11 -10 -10 ---------- Run | Yrd Mat Min Machines Disabled . | . . . Max in Single Turn . | . . . Machines Repaired . | . . . Machines Dismantled . | . . . Machines Sabotaged . | . . . Overloaded Fab Kills . | . . . Hacking | -11 -10 -10 --------- Run | Yrd Mat Min Machines Accessed 6 | . 6 . Terminals 4 | . 4 . Fabricators . | . . . Repair Stations 1 | . 1 . Recycling Units 1 | . 1 . Scanalyzers . | . . . Garrison Access . | . . . Total Hacks 22 | . 22 . Successful 8 | . 8 . Failed 14 | . 14 . Catastrophic . | . . . Database Lockouts . | . . . Manual . | . . . Terminals 13 | . 13 . Fabricators . | . . . Repair Stations 7 | . 7 . Recycling Units 2 | . 2 . Scanalyzers . | . . . Garrison Access . | . . . Terminal Hacks 3 | . 3 . Emergency Access Points 1 | . 1 . Investigation Status 1 | . 1 . Registered Prototypes 1 | . 1 . Fabricator Hacks . | . . . Repair Station Hacks 4 | . 4 . Scan Component 2 | . 2 . Repair 2 | . 2 . Recycling Unit Hacks 1 | . 1 . Report Inventory 1 | . 1 . Scanalyzer . | . . . Garrison Access Hacks . | . . . Unauthorized Hacks . | . . . Terminals . | . . . Fabricators . | . . . Repair Stations . | . . . Recycling Units . | . . . Scanalyzers . | . . . Garrison Access . | . . . Data Cores Recovered . | . . . Used . | . . . Hacking Detections 6 | . 6 . Full Trace Events 2 | . 2 . Feedback Events . | . . . Feedback Blocked . | . . . Robot Schematics Acquired . | . . . Robots Built . | . . . Authchips . | . . . Time . | . . . Total Robot Build Rating . | . . . Part Schematics Acquired . | . . . Parts Built . | . . . Authchips . | . . . Time . | . . . Total Part Build Rating . | . . . Parts Repaired 2 | . 2 . Time 64 | . 64 . Parts Recycled . | . . . Recycled Matter . | . . . Retrieved Matter . | . . . Retrieved Components . | . . . Parts Scanalyzed . | . . . Part Schematics Acquired . | . . . Parts Damaged . | . . . Bothacking | -11 -10 -10 ------------ Run | Yrd Mat Min Used RIF Installer . | . . . Robots Hacked . | . . . Non-combat . | . . . Combat . | . . . Robot Hacks Applied . | . . . Relay Couplers Released . | . . . Fabnet Peak Effective % . | . . . Robots Rewired . | . . . Allies Hacked . | . . . Hacks Repelled . | . . . Allies | -11 -10 -10 -------- Run | Yrd Mat Min Total Allies . | . . . Largest Group . | . . . Highest-Rated Group . | . . . Highest-Rated Ally . | . . . Total Orders . | . . . Ally Attacks . | . . . Total Damage . | . . . Kills . | . . . Allies Corrupted . | . . . Allies Melted . | . . . Intel | -11 -10 -10 ------- Run | Yrd Mat Min Robot Analysis Total . | . . . Derelict Logs Recovered 2 | . . 2 Drone Launches . | . . . Drone Recoveries . | . . . Exploration | -11 -10 -10 ------------- Run | Yrd Mat Min Turns Passed 1686 | 65 1181 440 Spaces Moved 587 | 31 392 164 Core 4 | 4 . . Treads 583 | 27 392 164 Legs . | . . . Wheels . | . . . Hover . | . . . Flight . | . . . Fastest Speed 50 | 50 160 240 Average Speed 226 | 145 227 240 Slowest Speed 240 | 160 240 240 Overloaded Moves . | . . . Propulsion Burnouts . | . . . Robots Hopped . | . . . Cave-ins Triggered . | . . . Exploration Rate (%) 38 | 3 70 41 Regions Visited 2 Branch Regions 1 Pre-discovered Areas 1 | . . 1 Known Exits Taken . | . . . Unknown Exits Taken 2 | 1 1 . Scrap Searched . | . . . Spaces Dug . | . . . Terrain Destroyed . | . . . Melee . | . . . Projectile . | . . . AOE . | . . . Terrain Rammed . | . . . Walls Destroyed . | . . . Machines Disabled . | . . . Actions | -11 -10 -10 --------- Run | Yrd Mat Min Total 803 | 44 577 182 Wait 96 | 3 93 . Move 585 | 30 391 164 Hop . | . . . Pick Up 15 | 2 13 . Fast Attach 10 | 7 3 . Attach 1 | . 1 . Detach . | . . . Swap 8 | . 7 1 Drop 7 | . 6 1 Fire 81 | 2 63 16 Melee . | . . . Ram . | . . . Kick . | . . . Crush . | . . . Escape Stasis . | . . . Rewire . | . . . Trap . | . . . Miscellaneous . | . . . Route ------- -11/Scrapyard -10/Materials (discovered 3 exits: [*Mat] / [*Min x2]) -10/Mines History --------- Turn | Location | Event 10 | -11/Scrapyard | Discovered new exit (range 16) 66 | -11/Scrapyard | Entered Materials 311 | -10/Materials | Build established: Mutant 377 | -10/Materials | Discovered new exit (range 15) 935 | -10/Materials | Discovered new exit (range 9) 1091 | -10/Materials | Discovered new exit (range 14) 1168 | -10/Materials | Repaired Imp. Heat Sink 1196 | -10/Materials | Repaired Lgt. Treads 1247 | -10/Materials | Entered Mines 1256 | -10/Mines | Met a Derelict bent on vengeance 1262 | -10/Mines | Learned Materials interactive machine intel 1313 | -10/Mines | Assembled infested the area 1353 | -10/Mines | Met 8R-AWN 1357 | -10/Mines | Core integrity fell below 50% 1631 | -10/Mines | Learned location of Storage (-7) 1676 | -10/Mines | Core integrity fell below 20% 1687 | -10/Mines | Destroyed by D-53 Grenadier with Mini Grenade Launcher Last Messages --------------- K-01 Serf suffers critical hit (Destroy). K-01 Serf collects debris. Dropped Lgt. Nuclear Core. Acquired 10 matter. K-01 Serf collects debris. U-05 Engineer builds a Wall. K-01 Serf collects debris. U-05 Engineer builds a Wall. K-01 Serf collects debris. Acquired derelict log, extracted data. World map updated: -7/Storage. The unstable cave ceiling collapses. U-05 Engineer lays Concrete. The unstable cave ceiling collapses. U-05 Engineer lays Concrete. Lgt. Treads destroyed. U-05 Engineer lays Concrete. The unstable cave ceiling collapses. EM Pulse Gun destroyed. Lgt. Nuclear Core destroyed. Map ----- +----------------------------------------------------+ | ???????????# #?## % ##??????????? | | ?#######???# ### % ######?????? | | ?# """ #???# ##????? | | ?# """ #???# ## % #????? | | ?# """ #???# ## #????? | | ?# ##### ## ##???? | | ?# #???? | | ?# ## #### ###### #???? | | ?######## #??# ####????## #???? | | ????????# #??# #???????## ##??## | | ????????# #??# #??????## #???# | | ????????# #??# #?????## #???# | | ????????# #??# ?????# #???# | | ????????# #??# ?????# ##???# | | ????????# #?? ?????# ##??## | | ????????# #?? ????# #### | | ????????# #?? ????# | | ????????# #?? ????# | | ????????# #?? ##????## | | ????????# #??###???????## | | ??????### ###???????????# | | ?????## # # ##??????????## # | | ????## ##??????????#### # | | ????# #?????????????### | | ????## #???????????????## | | ????## @ #??""###?????????# | | ????# # X #????????# | | ????# u #??????# | | ????## d """ | | ?????# d """ | | ?????# # ### """ | | ?????## # ### # #?# """ | | ??????#####??? #?# ## ??? | | ??????????????? ###??????## ????## | | ??????????????? ?????????#??????? | | ???????????????? ???????????????? | | ????????????????? ??????????????? | | ?????????????????? ?????????????? | | ?????????????????????????????????? | | ?????????????????????????????????? | | ?????????????????????????????????? | | ?????????????????????????????????? | | ?????????????????????????????????? | | ?????????????????????????????????? | | ?????????????????????????????????? | | ?????????????????????????????????? | | ?????????????????????????????????? | | | | | | | +----------------------------------------------------+ Best States ------------- Heat Dissipation 39 Energy Generation 14 Energy Capacity 250 Matter Stores 300 Matter Capacity 300 Sight Range 16 Terrain Scan Density 10 Evasion (%) 40 Recoil Reduction 2 Item Schematics ----------------- None Robot Schematics ------------------ None Fabricated ------------ Nothing Alien Tech Used ----------------- None Achievements -------------- None Challenges ------------ None Game ------ Seed MagneticCargoWand Manual? 0 Play Time 00:22:15 Cumulative 23.7 hours Start 2024.04.09 @ 18:06:43 End 2024.04.09 @ 18:57:28 Sessions 1 Manual Loads 0 Difficulty Rogue Special Mode None Game No. 13 Rogue 13 Adventurer 0 Explorer 0 Win Type - Total 0 Types 0/0/0/0/0/0/0/0/0 Lore% 8 Gallery% 22 Achievement% 15 Wizard Run 0 Options --------- Layout 1 ASCII 0 Keyboard 1 Movement Numpad Keybinds 0 Fullscreen 1 Font 24/Smallcaps Map View 50x35 Zoom Use 0% Tactical HUD 0 Map Filters NONE Filters NONE Steam 1 RUN: 01bd634a-4530-42c3-980f-9644919c246a